{"text_format":"1","workbook":"xlsx","n_sheets":1,"sheets":["Sheet1"],"not_rendered":{"charts":0,"images":1,"macros":1,"external_links":0,"defined_names":1,"comments":0,"pivot_tables":0},"unopened":[],"bounds":{"document_bytes":16777216,"sheet_cells":100000,"rows_first":2000,"rows_last":500,"rows_between":2000,"halvings":0,"cell_chars":16384,"cell_head_chars":4096},"cells_cut":0,"cells_raw":0,"read":"whole","date_system":"1900"}

{"sheet":"Sheet1","index":0,"n_rows":89,"n_cols":16,"rows_kept":89,"cut":false,"hidden":false,"merged":[]}
[null,"DBR Tractor price list",null,null,null,null,null,null,null,"Weight per unit","Total Weight"]
[null,"FREE SHIPPING (UK MAINLAND ONLY) now included for orders over £100.                      ◄Quantities in column 'A' please.","Price (£)"]
[1,"Build manual no VAT when purchased alone",46.2,{"$f":"C3*A3","v":46.2},null,null,null,null,null,null,{"$f":"A3*J3","v":0}]
[null,"Front axle swing and support brackets",57.750000000000007,{"$f":"A4*C4","v":0},null,null,null,null,null,1.7,0]
[null,"Steering Assembly: king pins and stub axles DBR",35.805,{"$f":"A5*C5","v":0},null,null,null,null,null,1.5,0]
[null,"Steering Brace",13.750000000000002,0,null,null,null,null,null,0.3,0]
[null,"Steering column",24.255000000000003,0,null,null,null,null,null,0.9,0]
[null,"Steering wheel ",32.340000000000003,{"$f":"A8*C8","v":0},null,null,null,null,null,0.6,0]
[null,"Rear Axle and plates",28.82,0,null,null,null,null,null,2.1,0]
[null,"Brake assembly inc retarding materials",68.14500000000001,0,null,null,null,null,null,2.1,0]
[null,"Tow bar",19.635000000000002,0,null,null,null,null,null,0.6,0]
[null,"Above items include all Nut & Bolts & other fixings.",null,null,null,null,null,null,null,null,0]
[null,"FABRICATED PARTS: STEEL",280.5,0,null,null,null,null,null,9,0]
[null,"Rear wheels: open centre tread pattern tyres and tubes x 2 on steel rims",75.075000000000003,0,null,null,null,null,null,11,0]
[null,"Front Wheels: three rib front tyres and tubes on steel rim",57.750000000000007,0,null,null,null,null,null,4,0]
[null,"Drive sprocket conversion: extension welded to drive wheel & sprocket, plus bearing",28.875000000000004,0,null,null,null,null,null,null,0]
[null,"WHEELS",161.70000000000002,{"$f":"A17*C17","v":0},null,null,null,null,null,15,0]
[null,"Motor and Gearbox unit",138.60000000000002,0,null,null,null,null,null,3.4,0]
[null,"Motor Mounting Plate and bolt set",12.705000000000002,{"$f":"A19*C19","v":0},null,null,null,null,null,0.5,0]
[null,"Motor drive sprocket Single Drive",14.437500000000002,0,null,null,null,null,null,0.1,0]
[null,"Chain and link Single Drive",9.240000000000002,0,null,null,null,null,null,0.2,0]
[null,"DRIVE",174.98250000000004,{"$f":"A22*C22","v":0},null,null,null,null,null,4.2,0]
[null,"Speed controller:12/24v including motor wiring, ignition & Fwd/Rev switches & wiring",172.09500000000003,0,null,null,null,null,null,1.1000000000000001,0]
[null," Aluminium chequerplate throttle box complete ready assembled. (or kit options see below.)",69.300000000000011,0,null,null,null,null,null,0.2,0]
[null,"Safety Cut-out switch , stops spike to electronics when pushing away",8.0850000000000009,{"$f":"A25*C25","v":0},null,null,null,null,null,0.2,0]
[null,"Motor protection fuse box and spare fuse",9.240000000000002,0,null,null,null,null,null,0.1,0]
[null,"CONTROL",258.72000000000003,{"$f":"A27*C27","v":0},null,null,null,null,null,2.5,0]
[null,"Grille stickers: Made long to fit horizontally or vertically",4.620000000000001,0,null,null,null,null,null,0.01,0]
[null,"Chain Guard single motor",12.705000000000002,0,null,null,null,null,null,0.3,0]
[null,"Ancillary pk: hinges for:bonnet, seat & throttle Grilles 5, Budget lock and key, & seat stops. ",25.410000000000004,0,null,null,null,null,null,0.5,0]
[null,"BODYWORK",42.735000000000007,{"$f":"A31*C31","v":0},null,null,null,null,null,1,0]
[null,"Lighting set: Headlamps, tail lamps,switch, wire, con blocks ",85.470000000000013,{"$f":"A32*C32","v":0},null,null,null,null,null,0.6,0]
[null,"Lighting and horn fuse box",6.3525000000000009,0,null,null,null,null,null,0.1,0]
[null,"Electric horn kit",13.860000000000003,0,null,null,null,null,null,0.1,0]
[null,"Dash board preformed instrument and switch mounting panel/ box",10.395000000000001,0,null,null,null,null,null,0.1,0]
[null,"Instrument sticker",4.620000000000001,0,null,null,null,null,null,0.1,0]
[null,"Wheel retaining caps. Do not fit until job complete.( Use jubilee clips as temporary fixing). ",6.3525000000000009,0,null,null,null,null,null,0.1,0]
[null,"COMPONENTS",127.06100000000002,{"$f":"A38*C38","v":0},null,null,null,null,null,2.1,0]
[null,"1 x GEL battery 33amp Hr 12v (safe non spill)",97.02000000000001,{"$f":"A39*C39","v":0},null,null,null,null,null,12,0]
[null,"Safe battery mounting, strap and bolt set for 1 or 2 batteries",11.55,{"$f":"A40*C40","v":0},null,null,null,null,null,0.3,0]
[null,"TO ORDER ALL ITEMS ABOVE PLEASE ORDER LINE BELOW:            Total parts individually column B           ",1200.4685000000002,null,"Above line for individual parts",null,null,null,null,null,0]
[null,"Basic Kit all standard parts in list ▲ Saving £25.47  price £1,295.00 INC VAT + and FREE UK Mainland SHIPPING (Highlands and Islands may carry a surcharge)",1175,0,null,null,null,null,null,35,0]
[null,"ACCESSORIES & DETAIL EXTRAS",0,null,"Accessories and alternatives below",null,null,null,null,null,0]
[null,"Rear Mudguards Galvanised metal (pair)",46,{"$f":"A44*C44","v":0},null,null,null,null,null,null,0]
[null,"Rear mudguard infill panel",6.9300000000000015,0,null,null,null,null,null,1,0]
[null,"Mudguard support materials",6.9300000000000015,0,null,null,null,null,null,1,0]
[null,"Safe battery mounting set, strap and bolts for single or twin Batteries",13.860000000000003,0,null,null,null,null,null,0.3,0]
[null,"Second motor kit motor, extra: cable, battery clamps, mount kit, chain, sprocket, drive wheel conversion & chain guard",213.67500000000001,0,null,null,null,null,null,4,0]
[null," Aluminium chequerplate throttle box complete ready assembled (Do not buy if purchasing complete kit above)",69.300000000000011,0,null,null,null,null,null,0.2,0]
[null,"Grille moulding [glassfibre Prepare, paint and fit straight on to your body carcase, last ones-when they are gone]",42.735000000000007,0,null,null,null,null,null,null,0]
[null,"Bonnet moulding glass fibre, last ones, when theyre gone, theyre gone..)",60.500000000000007,0,null,null,null,null,null,null,0]
[null,"Replacement Red Pot. For throttle pedal",32.340000000000003,{"$f":"A52*C52","v":0},null,null,null,null,null,0.1,0]
[null,"Remote Control: Hand held box with Speed and Direction control for speed control system",20.790000000000003,0,null,null,null,null,null,0.1,0]
[null,"Ext Lead for above fitted to Bulkhead or Motor Closing panel. Plug box in further away",14.437500000000002,0,null,null,null,null,null,0.1,0]
[null,"Splitter box for remote - Safely and instantly switch between manual and  remote control ",41.580000000000005,0,null,null,null,null,null,0.1,0]
[null,"Number plates, personalised, CNC cut - will be posted seperately once ordered",26.950000000000003,0,null,null,null,null,null,0.1,0]
[null,"Safety Battery non spill fully sealed, 12 volt, 35 Amp Hour, weighs 11 kilos",97.02000000000001,0,null,null,null,null,null,12,0]
[null,"Battery charger 12/24v 230 volt",125.4,0,null,null,null,null,null,3.5,0]
[null,"Battery condition meter 12 or 24 volt",19.635000000000002,0,null,null,null,null,null,0.2,0]
[null,"DBR pre cut panel set (moisture resistant MDF)",223.68,0,null,null,null,null,null,45,0]
[null,"Batten, glue, screw set",51.98,0,null,null,null,null,null,5.5,0]
[null,"Trailer Build Manual (included in Kit)",16.5,0,null,null,null,null,null,null,0]
[null,"Standard Trailer Kit with Standard wheels (including Manual)",141.185,0,null,null,null,null,null,8,0]
[null,"Town & Country Trailer Kit with T & C Tyres",168.43200000000002,0,null,null,null,null,null,10.5,0]
[null,"Lights and star decals for trailer kits",29.458000000000002,0,null,null,null,null,null,0.01,0]
[null,"Upgrade Standard Trailer tyres to Town & Country Tyres",26.015000000000001,0,null,null,null,null,null,2.1,0]
[null,"Ready cut Trailer panel set",46.2,0,null,null,null,null,null,12.5,0]
[null,"Standard Trailer Batten x 19 x19 x 8mtrs, 1 box screws, pot of glue,",25.410000000000004,0,null,null,null,null,null,3,0]
[null,"Second drive wheel conversion at initial build. Saves sending wheel back for conversion later.",28.875000000000004,{"$f":"A69*C69","v":0},null,null,null,null,null,null,{"$f":"A69*J69","v":0}]
[null,"Glue Titebond II 8oz 237ml",7.35,0,null,null,null,null,null,0.3,0,null,null,7.35,null,{"$f":"N70*1.1","v":8.0850000000000009}]
[null,"The result will need to be checked and reviewed by Real Life Toys Toylander Ltd before final price agreed","SUB TOTAL",{"$f":"SUM(D3:D70)","v":46.2},null,null,null,null,null,null,0]
[null,"Export payment by Bank transfer in Sterling.   Cost paid for by purchaser.         VAT","20% VAT inc",{"$f":"D71/6","v":7.7},null,null,null,null,null,null,0]
[null,"Grand Total including VAT",null,{"$f":"D71","v":46.2},null,null,null,null,null,null,0]
[null," 20% VAT included",null,{"$f":"D73/6","v":7.7},null,null,null,null,null,null,0]
[null,null,null,null,null,null,null,null,null,null,0]
[null,null,null,null,null,null,null,null,null,null,0]
[null,null,null,null,null,null,null,null,null,null,0]
[null,null,null,null,null,null,null,null,null,null,0]
[null,null,null,null,null,null,null,null,null,null,0]
[null,null,null,null,null,null,null,null,null,null,0]
[null,null,null,null,null,null,null,null,null,null,0]
[null,null,null,null,null,null,null,null,null,null,0]
[null,null,null,null,null,null,null,null,null,null,0]
[null,null,null,null,null,null,null,null,null,null,0]
[null,null,null,null,null,null,null,null,null,null,0]
[null,null,null,null,null,null,null,null,null,null,0]
[null,null,null,null,null,null,null,null,null,null,0]
[null,null,null,null,null,null,null,null,null,null,0]
[null,null,null,null,null,null,null,null,null,null,{"$f":"SUM(K3:K88)","v":0}]